[Event "13th Chennai Open 2022"]
[Site "Chennai"]
[Date "2022.06.21"]
[Round "4.12"]
[White "Tran, Tuan Minh"]
[Black "Allahverdiyeva, Ayan"]
[Result "*"]
[ECO "D38"]
[WhiteElo "2533"]
[BlackElo "2120"]
[Annotator "TA"]
[PlyCount "57"]
[EventDate "2022.06.19"]
[EventType "swiss"]
[EventCountry "IND"]
[SourceTitle "playchess.com"]
[Source "ChessBase"]
[SourceQuality "1"]
[TimeControl "5400+30"]

{[%evp 16,56,14,22,19,20,36,50,43,46,53,50,254,193,265,236,1143,757,754,670,662,647,656,651,641,525,912,917,908,908,891,891,1047,872,1636,1521,1477,1039,6419,1750,29984,29985,29999]} 1. d4 {[%emt 0:00:06]} Nf6 {[%emt 0:00:44]} 2. c4 {[%emt 0:00:07]} e6 {[%emt 0:00:02]} 3. Nf3 {[%emt 0:00:11]} d5 {[%emt 0:00:12]} 4. Nc3 {[%emt 0:00:05]} Bb4 {[%emt 0:00:06]} 5. cxd5 {[%emt 0:03:24]} exd5 {[%emt 0:00:04]} 6. Bg5 {[%emt 0:00:35]} Nbd7 {[%emt 0:03:57]} 7. e3 {[%emt 0:00:42]} c5 {[%emt 0:00:04]} 8. Bb5 {[%emt 1:29:20]} Qa5 {[%emt 0:14:15]} 9. O-O {[%emt 0:00:41]} Bxc3 {[%emt 0:00:57] D38: Queen's Gambit Declined: Ragozin Defence (4 Nf3 Bb4).} 10. Bxd7+ {[%emt 0:00:06]} Bxd7 {[%emt 0:15:12]} 11. Bxf6 {[%emt 0:07:49]} Bxb2 {[%emt 0:00:42] [#] White is slightly better.} 12. Bxg7 $146 {[%emt 0:02:52]} ({Predecessor:} 12. Rb1 Ba3 13. Bxg7 Rg8 14. Bf6 Qa6 15. Bh4 Bf5 16. Ne5 Be4 17. f3 Bxb1 18. Qxb1 {½-½ (53) Baryshpolets,A (2450)-Hammer,J (2636) Chotowa 2010}) 12... Rg8 {[%emt 0:05:24]} 13. Rb1 {[%emt 0:00:05] [#] aiming for Be5.} Bc3 $2 {[%emt 0:00:54]} (13... Rxg7 $14 14. Rxb2 Bb5) 14. Be5 $18 {[%emt 0:07:13]} Bb5 {[%emt 0:09:56]} (14... c4 $142 15. Qc2 (15. Rxb7 Qa6 $16) 15... Bb4) 15. Qb3 {[%emt 0:05:24]} Bxf1 {[%emt 0:02:40]} (15... Bb4 16. a3 (16. Qxd5 Bc6 $14) 16... Bxf1 17. axb4 Qxb4 18. Kxf1 (18. Qxb4 cxb4 19. Kxf1 a5 $11) 18... Qxb3 19. Rxb3 cxd4 20. Nxd4 (20. Rxb7 dxe3 21. Bd6 Rd8 $16) 20... b6) 16. Qxb7 {[%emt 0:01:54]} Qd8 {[%emt 0:13:33]} 17. Qc6+ {[%emt 0:04:12]} Kf8 {[%emt 0:00:09]} 18. Qxc5+ {[%emt 0:00:20]} Ke8 {[%emt 0:00:27] Threatens to win with ...Rc8.} 19. Qc6+ {[%emt 0:00:21]} ({Less strong is} 19. Kxf1 Rc8 20. Qxa7 Rg6 $16) 19... Kf8 {[%emt 0:00:06][%cal Og8g6]} 20. Kxf1 {[%emt 0:01:46] Hoping for Bd6+.} Rc8 {[%emt 0:03:58]} 21. Qh6+ {[%emt 0:00:12]} Ke8 {[%emt 0:00:35]} 22. Qxh7 {[%emt 0:00:14]} Rf8 {[%emt 0:06:35]} 23. Bg7 {[%emt 0:53:17]} Qc7 {[%emt 0:21:28]} 24. g3 {[%emt 0:00:44]} a5 {[%emt 0:00:31]} 25. Bxf8 {[%emt 0:00:18]} Kxf8 {[%emt 0:00:01]} 26. Kg2 {[%emt 0:00:16]} a4 {[%emt 0:00:19]} 27. Rb5 {[%emt 0:00:07]} Qd7 {[%emt 0:00:51] [#]} 28. Ne5 $1 {[%emt 0:00:12]} Qxb5 {[%emt 0:00:17]} (28... Qc7 29. Qh8+) 29. Qxf7# {[%emt 0:00:06] Black got outplayed after the opening.  Weighted Error Value: White=0.23 (precise) /Black=0.59} *

[Event "13th Chennai Open 2022"]
[Site "Chennai"]
[Date "2022.06.21"]
[Round "4.13"]
[White "Deepan Chakkravarthy J."]
[Black "Ghosh Samriddhaa"]
[Result "1-0"]
[ECO "E04"]
[WhiteElo "2478"]
[BlackElo "1844"]
[Annotator "TA"]
[PlyCount "191"]
[EventDate "2022.06.19"]
[EventType "swiss"]
[EventCountry "IND"]
[SourceTitle "playchess.com"]
[Source "ChessBase"]
[SourceQuality "1"]
[TimeControl "5400+30"]

{[%evp 20,191,25,22,27,22,14,10,12,0,15,19,17,22,24,18,33,12,18,8,11,5,10,8,7,10,16,8,17,7,9,0,2,4,8,0,0,0,0,0,8,8,7,5,16,11,17,14,16,0,0,0,0,0,0,0,0,0,0,0,0,0,0,-8,-8,-8,-8,-8,0,0,0,0,0,0,0,0,8,8,8,0,0,0,8,8,8,8,8,8,9,16,16,0,16,0,16,8,8,8,16,16,16,16,29972,29973,29973,0,29975,29976,29976,29977,29977,29978,29978,29978,29979,29979,29981,29982,29981,29979,29978,29977,29977,29978,29978,29977,29979,29980,29980,29981,29981,29982,29982,29983,29985,29986,29988,29987,29987,29988,29988,29988,29988,29989,29989,29984,29985,29986,29986,29987,29987,29984,29984,29985,29985,29986,29986,29987,29988,29988,29988,29989,29989,29990,29990,29991,29991,528,29992,29993,29995,29996,29996,29997]} 1. Nf3 {[%emt 0:01:39]} d5 {[%emt 0:00:18]} 2. g3 {[%emt 0:01:19]} Nf6 {[%emt 0:00:58]} 3. Bg2 {[%emt 0:00:05]} c5 {[%emt 0:01:34]} 4. O-O {[%emt 0:00:10]} Nc6 {[%emt 0:00:54]} 5. d4 {[%emt 0:04:28]} e6 {[%emt 0:01:49]} 6. c4 {[%emt 0:00:04]} dxc4 {[%emt 0:01:59]} 7. dxc5 {[%emt 0:00:09]} Qxd1 {[%emt 0:02:06]} 8. Rxd1 {[%emt 0:00:02]} Bxc5 {[%emt 0:01:04]} 9. Nbd2 {[%emt 0:00:03]} c3 {[%emt 0:00:48]} 10. bxc3 {[%emt 0:00:03]} O-O {[%emt 0:03:35]} 11. Nb3 {[%emt 0:01:35]} Be7 {[%emt 0:01:26] E04: Open Catalan: 5 Nf3.} 12. Bb2 {[%emt 0:04:24]} Bd7 {[%emt 0:15:58]} 13. c4 {[%emt 0:08:24]} Rfd8 {[%emt 0:02:35] The position is equal.} 14. Ne5 {[%emt 0:02:04]} Be8 {[%emt 0:18:03]} 15. Nxc6 {[%emt 0:08:42]} Bxc6 {[%emt 0:00:17]} 16. Bxc6 {[%emt 0:02:02]} bxc6 {[%emt 0:00:06]} 17. Na5 {[%emt 0:00:20]} Rac8 {[%emt 0:10:14]} 18. Bxf6 {[%emt 0:27:34]} Bxf6 {[%emt 0:09:57] [#]} 19. Nb7 $146 {[%emt 0:01:24]} ({Predecessor:} 19. Rab1 g6 20. c5 Rd5 21. Nb3 Rcd8 22. Rdc1 Be7 23. Rc4 f5 24. Rbc1 Kg7 25. Ra4 {1-0 (44) Senthil,M (2208)-Brunner,N (2427) Chess.com INT 2022}) 19... Rxd1+ {[%emt 0:06:11]} 20. Rxd1 $11 {[%emt 0:01:32][%mdl 4096] Endgame KRB-KRN} Rc7 {[%emt 0:00:41] Inhibits Rd7.} 21. Na5 {[%emt 0:00:12]} Be7 {[%emt 0:03:16] Inhibits Rd6.} 22. Rb1 {[%emt 0:00:25]} f6 {[%emt 0:00:33]} 23. Kg2 {[%emt 0:05:06]} Kf7 {[%emt 0:00:14]} 24. Kf3 {[%emt 0:00:17]} e5 {[%emt 0:02:02]} 25. g4 {[%emt 0:01:10]} Ke6 {[%emt 0:01:44]} 26. Rb8 {[%emt 0:00:18]} g6 {[%emt 0:07:35]} 27. a4 {[%emt 0:00:38]} f5 {[%emt 0:04:02]} 28. gxf5+ {[%emt 0:00:29]} gxf5 {[%emt 0:00:06]} 29. e4 {[%emt 0:00:06]} Bc5 {[%emt 0:02:24]} 30. Re8+ {[%emt 0:19:25]} Kf6 {[%emt 0:00:12]} 31. Nb3 {[%emt 0:00:05]} fxe4+ {[%emt 0:01:59]} 32. Kxe4 {[%emt 0:00:03]} Bxf2 {[%emt 0:00:56]} 33. Rf8+ {[%emt 0:00:13]} Rf7 {[%emt 0:00:03]} 34. Rxf7+ {[%emt 0:00:03]} Kxf7 {[%emt 0:00:03] KB-KN} 35. Na5 {[%emt 0:00:03]} Ke6 {[%emt 0:01:14]} 36. Nxc6 {[%emt 0:00:06]} Bg1 {[%emt 0:00:38]} 37. h4 {[%emt 0:04:27] h5 is the strong threat.} h5 {[%emt 0:00:28]} 38. Nxe5 {[%emt 0:00:09]} Bf2 {[%emt 0:00:08]} 39. Ng6 {[%emt 0:06:48]} Kd6 {[%emt 0:00:30]} 40. Kd3 {[%emt 0:01:12]} Kc5 {[%emt 0:00:39]} 41. Kc3 {[%emt 0:00:06]} Be1+ {[%emt 0:00:22]} 42. Kb3 {[%emt 0:00:12]} a5 {[%emt 0:00:33]} 43. Nf4 {[%emt 0:00:10] Nd3+ would kill now.} Bxh4 {[%emt 0:00:05] Strongly threatening ...Bf6.} 44. Nxh5 {[%emt 0:00:10]} Be1 {[%emt 0:01:00]} 45. Nf4 {[%emt 0:00:13] Threatening mate with Nd3+.} Bd2 {[%emt 0:00:23]} 46. Ne6+ {[%emt 0:01:15]} Kd6 {[%emt 0:00:29]} 47. Kc2 {[%emt 0:00:16]} Bh6 {[%emt 0:00:35]} 48. Nd8 {[%emt 0:00:06]} Kc5 {[%emt 0:00:41]} 49. Kb3 {[%emt 0:00:01]} Bd2 {[%emt 0:00:23]} 50. Nb7+ {[%emt 0:00:17]} Kb6 {[%emt 0:00:53]} 51. Nd6 {[%emt 0:00:05]} Bf4 {[%emt 0:00:25]} 52. Ne4 {[%emt 0:00:03]} Be3 {[%emt 0:00:40]} 53. Kc3 {[%emt 0:00:02]} Kc6 {[%emt 0:00:17]} 54. Kd3 {[%emt 0:00:01]} Bg1 {[%emt 0:00:18]} 55. Kc3 {[%emt 0:01:28]} Ba7 {[%emt 0:00:29]} 56. Nd2 {[%emt 0:00:20]} Bf2 {[%emt 0:00:29]} 57. Nb3 {[%emt 0:00:06]} Be1+ {[%emt 0:00:39]} 58. Kd4 $1 {[%emt 0:01:14] Intending c5 and mate.} Bf2+ $1 {[%emt 0:00:30]} 59. Ke5 {[%emt 0:00:19]} Be1 {[%emt 0:00:08]} 60. Ke4 {[%emt 0:00:11]} Bb4 $2 {[%emt 0:00:22][%mdl 8192] White leaves nothing to chance now.} (60... Bc3 $11) 61. Kd4 {[%emt 0:00:15]} Be1 {[%emt 0:01:25] [#]} 62. c5 $1 {[%emt 0:00:02]} Bb4 $2 {[%emt 0:00:31][%mdl 8192]} (62... Bf2+ $11 63. Kc4 Be1 64. Nd4+ Kb7) 63. Kc4 {[%emt 0:00:03]} Be1 {[%emt 0:00:24]} 64. Nd4+ {[%emt 0:00:04]} Kc7 {[%emt 0:00:38]} 65. Kb5 {[%emt 0:00:05]} Bf2 {[%emt 0:00:29]} 66. Nb3 {[%emt 0:00:10]} Kb7 {[%emt 0:01:03]} 67. Nxa5+ {[%emt 0:00:06]} Ka7 {[%emt 0:00:00]} 68. Nc6+ {[%emt 0:00:24]} Ka8 {[%emt 0:00:25]} 69. Nb4 {[%emt 0:00:18]} Ka7 {[%emt 0:00:33]} 70. Nd5 {[%emt 0:00:13]} Bg3 {[%emt 0:00:28]} 71. Ne3 {[%emt 0:03:52]} Bf4 {[%emt 0:00:28]} 72. Nc4 {[%emt 0:00:02]} Bg3 {[%emt 0:00:25]} 73. Kc6 {[%emt 0:00:23]} Bf2 {[%emt 0:00:39]} 74. Na5 {[%emt 0:02:01]} Ka6 {[%emt 0:00:24]} 75. Nb3 {[%emt 0:00:33]} Ka7 {[%emt 0:00:29]} 76. Kd7 {[%emt 0:00:06]} Kb8 {[%emt 0:00:37]} 77. c6 {[%emt 0:00:16]} Bb6 {[%emt 0:00:11] [#]} 78. Nd4 $1 {[%emt 0:00:29][%mdl 512]} Ba5 {[%emt 0:00:50]} (78... Bc7 79. Ne6) 79. Nb5 {[%emt 0:00:19]} Bb6 {[%emt 0:00:25]} 80. c7+ {[%emt 0:00:33]} Bxc7 {[%emt 0:00:06]} 81. Nxc7 {[%emt 0:00:03]} Kb7 {[%emt 0:00:46]} 82. Nd5 {[%emt 0:00:07]} Ka6 {[%emt 0:00:30]} 83. Kc6 {[%emt 0:00:04]} Ka5 {[%emt 0:00:31]} 84. Nc3 {[%emt 0:00:04]} Ka6 {[%emt 0:00:06]} 85. Kc5 {[%emt 0:00:05]} Ka5 {[%emt 0:00:19]} 86. Kc4 {[%emt 0:00:05]} Ka6 {[%emt 0:00:19]} 87. Kb4 {[%emt 0:00:02]} Kb6 {[%emt 0:00:06]} 88. a5+ {[%emt 0:00:05][%cal Ba4a5,Ba5a6,Ba6a7][%mdl 32]} Ka6 {[%emt 0:00:04]} 89. Ka4 {[%emt 0:00:04]} Ka7 {[%emt 0:00:14]} 90. Kb5 {[%emt 0:00:03]} Kb7 {[%emt 0:00:05]} 91. a6+ {[%emt 0:00:05]} Ka7 {[%emt 0:00:03]} 92. Ka5 {[%emt 0:00:03]} Ka8 {[%emt 0:00:24]} 93. Kb6 {[%emt 0:00:03]} Kb8 {[%emt 0:00:05]} 94. Nb5 {[%emt 0:00:04] White mates.} Ka8 {[%emt 0:00:12]} 95. Nc7+ {[%emt 0:00:05]} Kb8 {[%emt 0:00:05]} 96. a7+ {[%emt 0:00:07] Weighted Error Value: White=0.03 (flawless) /Black=0.19 (very precise)} 1-0

[Event "13th Chennai Open 2022"]
[Site "Chennai"]
[Date "2022.06.21"]
[Round "4.14"]
[White "Vignesh B"]
[Black "Nguyen, Van Huy"]
[Result "1-0"]
[ECO "A06"]
[WhiteElo "2072"]
[BlackElo "2405"]
[Annotator "TA"]
[PlyCount "65"]
[EventDate "2022.06.19"]
[EventType "swiss"]
[EventCountry "IND"]
[SourceTitle "playchess.com"]
[Source "ChessBase"]
[SourceQuality "1"]
[TimeControl "5400+30"]

{[%evp 9,65,-27,-8,-9,16,-18,-19,-29,-14,-8,-6,-6,-1,-34,-34,-62,-55,-42,0,-19,-2,-6,26,16,28,29,33,28,155,158,151,160,339,336,340,326,324,327,329,328,314,314,383,360,403,343,350,353,359,354,351,319,359,356,345,304,437,439]} 1. Nf3 {[%emt 0:00:09]} Nf6 {[%emt 1:31:00]} 2. b3 {[%emt 0:00:29]} d5 {[%emt 1:31:16]} 3. Bb2 {[%emt 0:00:05]} Bg4 {[%emt 0:00:19]} 4. Ne5 {[%emt 0:01:06]} Bh5 {[%emt 0:01:18]} 5. d4 {[%emt 0:06:09]} e6 {[%emt 0:03:10]} 6. Qd3 {[%emt 0:06:58] [#] A06: Réti Opening: 1 Nf3 d5.} Nfd7 $146 {[%emt 0:14:57]} ({Predecessor:} 6... Bb4+ 7. c3 Bd6 8. Qh3 O-O 9. e3 Nbd7 10. f4 Bg6 11. Nxg6 hxg6 12. Bd3 c5 {1-0 (75) Alatortsev,V-Rauzer,V Leningrad 1936}) 7. Nxd7 {[%emt 0:02:12]} Nxd7 {[%emt 1:13:43]} 8. e3 {[%emt 0:00:49] The position is equal.} Bd6 {[%emt 0:01:08]} 9. Be2 {[%emt 0:14:01]} Bg6 {[%emt 0:02:02]} 10. Qd1 {[%emt 0:00:39]} O-O {[%emt 0:01:07]} 11. Nd2 {[%emt 0:01:44]} c5 {[%emt 1:10:23]} 12. c4 {[%emt 0:09:52]} cxd4 {[%emt 0:03:59]} 13. exd4 {[%emt 0:02:50]} e5 {[%emt 0:10:59]} 14. cxd5 {[%emt 0:04:59]} exd4 {[%emt 0:02:36]} 15. Bxd4 {[%emt 0:02:47]} Nb6 {[%emt 0:04:59]} 16. O-O {[%emt 0:04:48]} Nxd5 {[%emt 0:04:43]} 17. Nc4 {[%emt 0:01:17][%cal Od4g7]} Bc7 {[%emt 0:01:52]} 18. Bf3 {[%emt 0:02:06][%cal Od4g7]} Nb4 {[%emt 0:02:59] [#] White now steadily converts the win.} (18... Qh4 19. g3 Qd8 20. Bc5 $16) (18... Qg5 $1 $11 {keeps the balance.}) 19. Bc5 $1 $16 {[%emt 0:03:12]} ({Inferior is} 19. Bxb7 Rb8 20. Bf3 Nc2 21. Bxa7 Nxa1 22. Qxd8 (22. Bxb8 Qxb8 23. Qxa1 Bxh2+ 24. Kh1 Qf4 $11) 22... Rbxd8 $11) 19... Nc2 {[%emt 0:01:35]} 20. Rc1 {[%emt 0:10:18]} ({Don't take} 20. Bxb7 Nxa1 21. Bxa8 Qxd1 22. Rxd1 Rxa8 $16) 20... Qg5 $2 {[%emt 0:06:26]} (20... Re8 $16 21. Rxc2 Qxd1 22. Bxd1 Bxc2 23. Bxc2 b6) 21. Bxf8 $18 {[%emt 0:00:52]} ({Avoid the trap} 21. Bxb7 $2 Rad8 22. Bxf8 (22. Bd6 $2 Bxd6 23. Nxd6 Qe7 $19) 22... Rxd1 23. Rcxd1 Kxf8 $19) 21... Rxf8 {[%emt 0:00:37]} 22. Rxc2 {[%emt 0:00:12]} Bxc2 {[%emt 0:01:04]} 23. Qxc2 {[%emt 0:00:05]} Qf4 {[%emt 0:31:46][%csl Gc7][%cal Rf4h2] [#]} 24. Re1 {[%emt 0:01:18]} Qxh2+ {[%emt 0:00:10]} 25. Kf1 {[%emt 0:00:04]} b5 {[%emt 0:01:36]} 26. Ne3 {[%emt 0:00:09]} h5 {[%emt 0:01:00]} 27. Ke2 {[%emt 0:01:18]} g6 {[%emt 0:00:20]} 28. Rd1 {[%emt 0:00:41]} Bb6 {[%emt 0:01:33]} 29. Rd7 {[%emt 0:02:32] Bd5 is the strong threat.} Qe5 {[%emt 0:00:20]} 30. Qe4 {[%emt 0:00:37]} Qb2+ {[%emt 0:00:10]} 31. Rd2 {[%emt 0:00:11]} Qa1 {[%emt 0:00:33]} 32. Nd5 {[%emt 0:02:21]} Bc5 {[%emt 0:00:01]} (32... Bd8 {was worth a try.} 33. Qe3 a5) 33. b4 {[%emt 0:01:47] Weighted Error Value: White=0.09 (flawless) /Black=0.30} 1-0

[Event "13th Chennai Open 2022"]
[Site "Chennai"]
[Date "2022.06.21"]
[Round "4.15"]
[White "Jani Kushal R"]
[Black "Gusain, Himal"]
[Result "1/2-1/2"]
[ECO "A37"]
[WhiteElo "1800"]
[BlackElo "2396"]
[Annotator "TA"]
[PlyCount "87"]
[EventDate "2022.06.19"]
[EventType "swiss"]
[EventCountry "IND"]
[SourceTitle "playchess.com"]
[Source "ChessBase"]
[SourceQuality "1"]
[TimeControl "5400+30"]

{[%evp 11,87,0,3,2,0,4,3,0,69,13,47,-12,37,28,68,-15,-15,-9,-8,-30,0,-53,0,0,0,0,0,0,0,0,0,0,0,0,0,0,0,0,0,0,0,0,0,0,0,0,0,0,0,0,0,0,7,7,7,7,8,8,8,8,8,8,8,4,4,3,3,3,3,3,3,3,3,0,0,0,0,0]} 1. Nf3 {[%emt 0:00:03]} c5 {[%emt 0:01:26]} 2. g3 {[%emt 0:00:13]} Nc6 {[%emt 0:00:05]} 3. Bg2 {[%emt 0:00:24]} g6 {[%emt 0:00:21]} 4. O-O {[%emt 0:00:42]} Bg7 {[%emt 0:00:04]} 5. c4 {[%emt 0:00:07]} e5 {[%emt 0:01:27]} 6. Nc3 {[%emt 0:00:22]} d6 {[%emt 0:00:06]} 7. e3 {[%emt 0:03:03][%cal Od2d4] A37: Symmetrical English vs ...g6: 4 Bg2 Bg7 5 Nf3.} Be6 {[%emt 0:00:22]} 8. d4 {[%emt 0:06:36] [#] Strongly threatening d5.} Bxc4 {[%emt 0:01:29]} 9. Re1 {[%emt 0:01:09] [#]} Ba6 $146 {[%emt 0:06:08]} ({Don't play} 9... cxd4 10. exd4 Nge7 11. dxe5 (11. d5 Nb8 $11) 11... dxe5 12. Qa4 $14) (9... Nge7 $11) ({Predecessor:} 9... Nge7 10. Qa4 Be6 11. dxc5 d5 12. Ng5 e4 13. Nxe6 fxe6 14. Rd1 Qb8 15. f3 exf3 16. Bxf3 {½-½ (90) Arfan,A (2274)-Bilguun,S (2454) Tornelo INT 2021}) 10. dxc5 {[%emt 0:07:36]} (10. Qa4 $1 $14 Kf8 11. dxc5) 10... dxc5 $11 {[%emt 0:00:05]} 11. Ne4 {[%emt 0:08:51]} (11. Qa4 $14) 11... Qxd1 {[%emt 0:04:15]} (11... Qe7 $11 12. Qc2 Nb4 13. Qa4+ (13. Qxc5 Qxc5 14. Nxc5 Nc2 $15) 13... Kf8) 12. Rxd1 $14 {[%emt 0:00:09]} Bf8 {[%emt 0:00:03]} 13. b4 {[%emt 0:07:54] White is more active.} (13. b3 $1 $14) 13... cxb4 $11 {[%emt 0:02:03]} 14. Bb2 {[%emt 0:01:28][%cal Bc1b2,Bb2a3,Ba3d6][%mdl 32]} f6 {[%emt 0:00:07]} 15. a3 {[%emt 0:06:33]} Be2 {[%emt 0:06:05]} 16. Rdc1 {[%emt 0:01:13]} (16. Rd2 $11 Bxf3 17. Bxf3) 16... bxa3 {[%emt 0:05:20]} (16... Rd8 $1 $15) 17. Bxa3 {[%emt 0:02:52] The position is equal.} f5 {[%emt 0:02:02] [#] And now ...Bxa3 would win.} 18. Nd6+ {[%emt 0:05:48]} Bxd6 {[%emt 0:00:10]} 19. Bxd6 {[%emt 0:00:03]} Bxf3 {[%emt 0:03:39]} 20. Bxf3 {[%emt 0:00:06] This bishop pair is nice.} e4 {[%emt 0:00:14]} 21. Be2 {[%emt 0:00:37] Rab1 is the strong threat.} Nge7 {[%emt 0:00:35]} 22. Rab1 {[%emt 0:02:19]} Rd8 {[%emt 1:05:24]} 23. Bxe7 {[%emt 0:15:46]} Kxe7 {[%emt 0:00:00]} 24. Rxb7+ {[%emt 0:00:06]} Rd7 {[%emt 0:00:00]} 25. Rxd7+ {[%emt 0:04:51]} Kxd7 {[%emt 0:00:00][%mdl 4096] Endgame KRB-KRN} 26. Bb5 {[%emt 0:00:02]} Rc8 {[%emt 0:00:00]} 27. Ra1 {[%emt 0:00:18]} Ke6 {[%emt 0:00:00]} 28. Ra6 {[%emt 0:00:49]} Kd5 {[%emt 0:00:00]} 29. Bxc6+ {[%emt 0:00:59]} Rxc6 {[%emt 0:00:00]} 30. Rxa7 {[%emt 0:00:08] KR-KR} h6 {[%emt 0:00:00]} 31. Kg2 {[%emt 0:00:06]} g5 {[%emt 0:00:00][%cal Bg6g5,Bg5f4,Bf4e3][%mdl 32]} 32. Ra5+ {[%emt 0:00:53]} Ke6 {[%emt 0:00:00]} 33. h3 {[%emt 0:00:40]} Rc2 {[%emt 0:00:00]} 34. Ra6+ {[%emt 0:00:29]} Kf7 {[%emt 0:00:00]} 35. Rxh6 {[%emt 0:00:57]} f4 $1 {[%emt 0:00:00]} 36. gxf4 {[%emt 0:00:33]} gxf4 {[%emt 0:00:00]} 37. Rh4 {[%emt 0:02:27]} fxe3 {[%emt 0:00:00]} 38. Rf4+ {[%emt 0:00:05]} Kg6 {[%emt 0:00:00]} 39. Rxe4 {[%emt 0:00:05]} Rxf2+ {[%emt 0:00:00]} 40. Kg3 {[%emt 0:00:12]} Re2 {[%emt 0:00:00]} 41. Kf3 {[%emt 0:00:05]} Rh2 {[%emt 0:00:00]} 42. Rxe3 {[%emt 0:00:06]} Rxh3+ {[%emt 0:00:00]} 43. Ke2 {[%emt 0:00:05]} Rxe3+ {[%emt 0:00:00]} 44. Kxe3 {[%emt 0:00:04] Weighted Error Value: White=0.15 (very precise) /Black=0.09 (flawless)} 1/2-1/2

[Event "13th Chennai Open 2022"]
[Site "Chennai"]
[Date "2022.06.21"]
[Round "4.16"]
[White "Apoorv Kamble"]
[Black "Rajesh, V A V"]
[Result "0-1"]
[ECO "C54"]
[WhiteElo "1846"]
[BlackElo "2358"]
[Annotator "TA"]
[PlyCount "74"]
[EventDate "2022.06.19"]
[EventType "swiss"]
[EventCountry "IND"]
[SourceTitle "playchess.com"]
[Source "ChessBase"]
[SourceQuality "1"]
[TimeControl "5400+30"]

{[%evp 10,73,12,16,38,0,27,14,17,25,20,0,0,0,18,6,18,-36,-57,-57,-60,-33,21,20,15,-19,0,-20,0,-21,-19,-31,-12,-60,-11,-10,-9,-18,-10,-38,-49,-32,-59,-41,-16,-81,-95,-316,-319,-435,-427,-717,-659,-649,-637,-936,-922,-1310,-1128,-29991,-29992,-29995,-29996,-29997,-29998,-29999]} 1. e4 {[%emt 0:00:03]} e5 {[%emt 0:00:20]} 2. Nf3 {[%emt 0:00:13]} Nc6 {[%emt 0:00:09]} 3. Bc4 {[%emt 0:00:06]} Bc5 {[%emt 0:00:05]} 4. c3 {[%emt 0:00:10]} Nf6 {[%emt 0:00:03]} 5. d3 {[%emt 0:00:08]} d6 {[%emt 0:00:06]} 6. Nbd2 {[%emt 0:00:11][%cal Bb1d2,Bd2f1,Bf1g3][%mdl 32]} h6 {[%emt 0:01:03] C54: Giuoco Piano: 4 c3 Nf6, main lines with 5 d4 and 5 d3.} 7. h3 {[%emt 0:00:26]} (7. b4 $5 {[%cal Rb4c5]} Bb6 8. a4 $11) 7... a6 {[%emt 0:01:16]} 8. Bb3 {[%emt 0:00:08]} Ba7 $1 {[%emt 0:03:53] The position is equal. 8...Ba7 is better than 8...0-0.} 9. Nf1 {[%emt 0:00:19]} d5 {[%emt 0:07:46]} 10. Qe2 {[%emt 0:00:58]} O-O {[%emt 0:00:20]} 11. Ng3 {[%emt 0:00:10]} Re8 {[%emt 0:01:41]} 12. O-O {[%emt 0:00:14]} Be6 {[%emt 0:01:15]} 13. Nh4 {[%emt 0:00:58] [#]} (13. Rd1 $11) 13... Nxe4 $1 $15 {[%emt 0:19:09]} 14. dxe4 {[%emt 0:09:02]} Qxh4 {[%emt 0:03:19]} 15. exd5 {[%emt 0:00:02]} Bxd5 {[%emt 0:02:18]} (15... Bxh3 $15 16. Be3 Bg4) 16. Bxd5 $11 {[%emt 0:00:02]} Qxg3 {[%emt 0:00:14] [#]} 17. Be3 $146 {[%emt 0:00:05]} ({Predecessor:} 17. Kh1 Qg6 18. Be3 Bb6 19. Bxb6 cxb6 20. Qe3 b5 21. Qb6 Rad8 22. Bb3 Rd7 23. a4 bxa4 24. Bxa4 {½-½ (43) Jiang,B (1954)-Estrada Nieto,J (2280) Chess.com INT 2020}) 17... Qg6 {[%emt 0:09:35][%cal Oc6d4]} 18. Rad1 {[%emt 0:00:07] Prevents Nd4.} Bb6 {[%emt 0:03:29]} 19. Qf3 {[%emt 0:02:36]} e4 {[%emt 0:07:11]} 20. Qf4 {[%emt 0:01:19]} Re7 {[%emt 0:00:39]} 21. Rfe1 {[%emt 0:01:59]} (21. Bxb6 $11 cxb6 22. Rde1) 21... Rae8 {[%emt 0:00:20]} (21... Bxe3 $15 22. Qxe3 Rd8) 22. Bxb6 {[%emt 0:09:24]} cxb6 {[%emt 0:00:08]} 23. Re3 {[%emt 0:00:09]} Kh8 {[%emt 0:10:06]} 24. Rg3 {[%emt 0:28:03]} Qh5 {[%emt 0:02:15]} 25. Bb3 {[%emt 0:02:03]} Qe5 {[%emt 0:02:37]} 26. Qh4 {[%emt 0:02:43]} Rd8 {[%emt 0:03:43] Prevents Rd5.} 27. Re1 {[%emt 0:05:39]} (27. Rxd8+ $11 Nxd8 28. Re3) 27... Rd2 {[%emt 0:04:33] Hoping for ...f5. Black is more active.} 28. Rg4 $2 {[%emt 0:04:58] This costs White the game.} (28. Rge3 $17 {was worth a try.} f5 29. R3e2 Rxe2 30. Rxe2) 28... f5 $19 {[%emt 0:01:24]} ({But not} 28... Rxb2 29. Rgxe4 Qf6 30. Qxf6 Rxe4 31. Qxf7 $1 (31. Rxe4 gxf6 32. Bxf7 b5 $11) 31... Rxe1+ 32. Kh2 Rxb3 33. Qxb3 $18) 29. Rg6 {[%emt 0:00:10][%cal Og6h6] Intending Rxh6+! and mate.} Kh7 {[%emt 0:00:59]} (29... Rxb2 $2 {[#] gets mated.} 30. Rxh6+ $1 {[%mdl 512]} gxh6 31. Qxh6+ Rh7 32. Qf8#) 30. Qh5 {[%emt 0:02:08]} (30. Rg3 $142 f4 31. Rg4) 30... Qf4 {[%emt 0:01:30]} 31. Rf1 {[%emt 0:09:00]} Ne5 {[%emt 0:01:16]} 32. Rxb6 {[%emt 0:00:18]} g6 {[%emt 0:00:27][%cal Bg7g6,Bg6h5][%mdl 32]} 33. g3 {[%emt 0:00:01]} Nf3+ {[%emt 0:01:10]} 34. Kg2 {[%emt 0:00:02]} gxh5 {[%emt 0:00:11] Black mates.} 35. gxf4 {[%emt 0:00:08]} Rg7+ {[%emt 0:00:03]} 36. Kh1 {[%emt 0:02:48] [#]} Rxf2 $3 {[%emt 0:00:13][%cal Rf2f1][%mdl 512]} 37. Rxb7 {[%emt 0:00:02]} (37. Bg8+ Kxg8) 37... Rxf1# {[%emt 0:00:08] Weighted Error Value: White=0.71/Black=0.09 (flawless)} 0-1